[Event "*** Titled Tuesday Blitz"]
[Site "Chess.com"]
[Date "2019.03.05"]
[Round "9"]
[White "bluejay1897"]
[Black "Denis_Palkovich"]
[Result "0-1"]
[WhiteElo "2148"]
[BlackElo "2256"]
[TimeControl "180+2"]
[EndTime "15:14:29 PST"]
[Termination "Denis_Palkovich won by resignation"]

1. Nf3 {[%clk 0:03:01.9]} 1... d5 {[%clk 0:03:00.5]} 2. g3 {[%clk 0:03:01.5]}
2... Bf5 {[%clk 0:03:01.4]} 3. Bg2 {[%clk 0:03:00.7]} 3... e6 {[%clk 0:03:02.9]}
4. b3 {[%clk 0:03:00.5]} 4... Nf6 {[%clk 0:02:58.8]} 5. Bb2 {[%clk 0:03:01.5]}
5... Be7 {[%clk 0:02:59.3]} 6. c4 {[%clk 0:03:01.8]} 6... c6 {[%clk 0:02:55.1]}
7. d3 {[%clk 0:03:02.5]} 7... h6 {[%clk 0:02:52.2]} 8. Nbd2 {[%clk 0:03:02.6]}
8... O-O {[%clk 0:02:48.7]} 9. O-O {[%clk 0:03:03.8]} 9... Nbd7 {[%clk
0:02:40.7]} 10. Qe1 {[%clk 0:02:57.7]} 10... Bh7 {[%clk 0:02:37]} 11. d4 {[%clk
0:02:52.9]} 11... Ne4 {[%clk 0:02:32.4]} 12. Nxe4 {[%clk 0:02:40]} 12... Bxe4
{[%clk 0:02:24.4]} 13. Qc3 {[%clk 0:02:37.1]} 13... a5 {[%clk 0:02:20.1]} 14. a3
{[%clk 0:02:35.9]} 14... f5 {[%clk 0:02:16.9]} 15. Bh3 {[%clk 0:02:28.6]} 15...
g5 {[%clk 0:01:57]} 16. Nd2 {[%clk 0:02:15.9]} 16... g4 {[%clk 0:01:57.9]} 17.
Bxg4 {[%clk 0:02:16.4]} 17... fxg4 {[%clk 0:01:56.9]} 18. Nxe4 {[%clk
0:02:16.6]} 18... dxe4 {[%clk 0:01:58.2]} 19. Qe3 {[%clk 0:02:17.4]} 19... Bg5
{[%clk 0:01:27.6]} 20. Qxe4 {[%clk 0:02:18]} 20... Qf6 {[%clk 0:01:19.8]} 21.
Qxg4 {[%clk 0:02:14.9]} 21... Qf5 {[%clk 0:01:12.5]} 22. Qh5 {[%clk 0:02:00.3]}
22... Nf6 {[%clk 0:01:13.3]} 23. Qf3 {[%clk 0:02:01.1]} 23... Qxf3 {[%clk
0:01:14]} 24. exf3 {[%clk 0:02:03]} 24... Nd7 {[%clk 0:01:03.7]} 25. Kg2 {[%clk
0:01:53.4]} 25... Bf6 {[%clk 0:01:00.1]} 26. Rab1 {[%clk 0:01:47.7]} 26... c5
{[%clk 0:00:58.9]} 27. dxc5 {[%clk 0:01:37.8]} 27... Bxb2 {[%clk 0:00:59.1]} 28.
Rxb2 {[%clk 0:01:38.5]} 28... Nxc5 {[%clk 0:01:00.8]} 29. b4 {[%clk 0:01:39.6]}
29... axb4 {[%clk 0:00:58.5]} 30. axb4 {[%clk 0:01:40.1]} 30... Nd3 {[%clk
0:00:54.7]} 31. Rb3 {[%clk 0:01:38.8]} 31... Ne5 {[%clk 0:00:38.2]} 32. Re1
{[%clk 0:01:32.1]} 32... Nxc4 {[%clk 0:00:30.2]} 33. Rxe6 {[%clk 0:01:30.6]}
33... Kg7 {[%clk 0:00:25.7]} 34. Rc3 {[%clk 0:01:22.9]} 34... b5 {[%clk
0:00:23.6]} 35. Rd3 {[%clk 0:01:20.3]} 35... Rad8 {[%clk 0:00:19.6]} 36. Re7+
{[%clk 0:01:15.5]} 36... Kf6 {[%clk 0:00:16.8]} 37. Red7 {[%clk 0:01:16.8]}
37... Rxd7 {[%clk 0:00:16.4]} 38. Rxd7 {[%clk 0:01:18.7]} 38... Rb8 {[%clk
0:00:15.6]} 39. f4 {[%clk 0:01:15.7]} 39... Ke6 {[%clk 0:00:15.4]} 40. Rh7
{[%clk 0:01:15.9]} 40... Kd5 {[%clk 0:00:16]} 41. Rxh6 {[%clk 0:01:15.8]} 41...
Nb2 {[%clk 0:00:14.1]} 42. g4 {[%clk 0:01:11.7]} 42... Nd3 {[%clk 0:00:15.2]}
43. Kf3 {[%clk 0:01:11.6]} 43... Nxb4 {[%clk 0:00:15.8]} 44. g5 {[%clk
0:01:10.6]} 44... Nc6 {[%clk 0:00:16]} 45. g6 {[%clk 0:01:11.4]} 45... Nd4+
{[%clk 0:00:15]} 46. Kg4 {[%clk 0:01:11.6]} 46... b4 {[%clk 0:00:10.4]} 47. g7
{[%clk 0:01:01.2]} 47... Rg8 {[%clk 0:00:07.2]} 48. Rb6 {[%clk 0:01:01]} 48...
Rxg7+ {[%clk 0:00:07.5]} 49. Kh5 {[%clk 0:01:00.3]} 49... Kc5 {[%clk 0:00:07.9]}
50. Rb8 {[%clk 0:01:01.4]} 50... Rf7 {[%clk 0:00:03.9]} 51. Kg5 {[%clk
0:00:56.4]} 51... Ne6+ {[%clk 0:00:05]} 52. Kg6 {[%clk 0:00:50.5]} 52... Rxf4
{[%clk 0:00:06.9]} 53. f3 {[%clk 0:00:47.4]} 53... Rxf3 {[%clk 0:00:07.1]} 54.
h4 {[%clk 0:00:48.3]} 54... b3 {[%clk 0:00:06.7]} 55. h5 {[%clk 0:00:48.6]}
55... Nf4+ {[%clk 0:00:08]} 56. Kg5 {[%clk 0:00:48.4]} 56... Nxh5 {[%clk
0:00:09.3]} 57. Kxh5 {[%clk 0:00:49.5]} 57... Kc4 {[%clk 0:00:10.4]} 58. Kg4
{[%clk 0:00:50.5]} 58... Rf7 {[%clk 0:00:11.2]} 59. Rc8+ {[%clk 0:00:50.3]}
59... Kd3 {[%clk 0:00:12.3]} 60. Rb8 {[%clk 0:00:48.9]} 60... Kc2 {[%clk
0:00:13.5]} 0-1

[Event "*** Titled Tuesday Blitz"]
[Site "Chess.com"]
[Date "2019.03.05"]
[Round "9"]
[White "champ2005"]
[Black "Supernotar"]
[Result "1-0"]
[WhiteElo "2781"]
[BlackElo "2522"]
[TimeControl "180+2"]
[EndTime "15:14:40 PST"]
[Termination "champ2005 won by checkmate"]

1. e4 {[%clk 0:03:01.2]} 1... c6 {[%clk 0:02:58.9]} 2. d4 {[%clk 0:03:00.7]}
2... d5 {[%clk 0:03:00.1]} 3. e5 {[%clk 0:03:02]} 3... Bf5 {[%clk 0:03:00.9]} 4.
Nf3 {[%clk 0:03:02.1]} 4... e6 {[%clk 0:03:01.9]} 5. c3 {[%clk 0:03:03.4]} 5...
Nd7 {[%clk 0:03:01.9]} 6. Be2 {[%clk 0:03:02.8]} 6... Ne7 {[%clk 0:03:00]} 7.
O-O {[%clk 0:02:58.5]} 7... h6 {[%clk 0:02:56.2]} 8. a4 {[%clk 0:02:53.6]} 8...
Qc7 {[%clk 0:02:52.2]} 9. a5 {[%clk 0:02:53.7]} 9... a6 {[%clk 0:02:17.4]} 10.
b4 {[%clk 0:02:54]} 10... g5 {[%clk 0:02:16.8]} 11. Nbd2 {[%clk 0:02:52.2]}
11... Bg7 {[%clk 0:01:58.4]} 12. Nb3 {[%clk 0:02:53.1]} 12... f6 {[%clk
0:01:55.7]} 13. exf6 {[%clk 0:02:54.1]} 13... Bxf6 {[%clk 0:01:56.5]} 14. Bd3
{[%clk 0:02:54.6]} 14... O-O-O {[%clk 0:01:56.2]} 15. Bxf5 {[%clk 0:02:32]}
15... exf5 {[%clk 0:01:50.8]} 16. Ne1 {[%clk 0:02:33]} 16... Rde8 {[%clk
0:01:29.8]} 17. Nd3 {[%clk 0:02:33.6]} 17... Ng6 {[%clk 0:01:22.6]} 18. f4
{[%clk 0:02:20.6]} 18... Rhg8 {[%clk 0:01:00.4]} 19. fxg5 {[%clk 0:02:08.3]}
19... Bxg5 {[%clk 0:00:58.7]} 20. Bxg5 {[%clk 0:02:05.2]} 20... hxg5 {[%clk
0:00:59.5]} 21. Rxf5 {[%clk 0:02:01]} 21... Nh4 {[%clk 0:00:58.9]} 22. Rf7
{[%clk 0:01:54.1]} 22... Rh8 {[%clk 0:00:53.6]} 23. Qg4 {[%clk 0:01:38.7]} 23...
Re4 {[%clk 0:00:33.1]} 24. Qxd7+ {[%clk 0:01:27.3]} 24... Qxd7 {[%clk
0:00:34.1]} 25. Rxd7 {[%clk 0:01:29.2]} 25... Rg4 {[%clk 0:00:19.7]} 26. Rf7
{[%clk 0:01:24.2]} 26... Rxg2+ {[%clk 0:00:16.4]} 27. Kf1 {[%clk 0:01:13.6]}
27... Rxh2 {[%clk 0:00:13.5]} 28. Rf2 {[%clk 0:01:09.8]} 28... Rh1+ {[%clk
0:00:11.8]} 29. Ke2 {[%clk 0:01:09.4]} 29... Re8+ {[%clk 0:00:13]} 30. Kd2
{[%clk 0:01:07.6]} 30... Rh3 {[%clk 0:00:12.1]} 31. Raf1 {[%clk 0:01:02.4]}
31... g4 {[%clk 0:00:07]} 32. Rf8 {[%clk 0:00:42.3]} 32... Rxf8 {[%clk
0:00:08.4]} 33. Rxf8+ {[%clk 0:00:43.2]} 33... Kd7 {[%clk 0:00:07.6]} 34. Ne5+
{[%clk 0:00:42.9]} 34... Ke7 {[%clk 0:00:06]} 35. Rf7+ {[%clk 0:00:43.2]} 35...
Ke8 {[%clk 0:00:07.5]} 36. Rg7 {[%clk 0:00:32]} 36... g3 {[%clk 0:00:08.8]} 37.
Nc1 {[%clk 0:00:15.9]} 37... Rh2+ {[%clk 0:00:07.6]} 38. Ne2 {[%clk 0:00:16.4]}
38... g2 {[%clk 0:00:07.7]} 39. Kd3 {[%clk 0:00:16.1]} 39... Rh1 {[%clk
0:00:05.4]} 40. Rg8+ {[%clk 0:00:13.2]} 40... Ke7 {[%clk 0:00:06.3]} 41. Rg3
{[%clk 0:00:12.8]} 41... Re1 {[%clk 0:00:04.9]} 42. Kd2 {[%clk 0:00:11.6]} 42...
Rf1 {[%clk 0:00:05.9]} 43. Ng4 {[%clk 0:00:11.7]} 43... Ke6 {[%clk 0:00:04.4]}
44. Ne3 {[%clk 0:00:10.6]} 44... Nf3+ {[%clk 0:00:05.7]} 45. Kd3 {[%clk
0:00:11.7]} 45... g1=Q {[%clk 0:00:06.1]} 46. Nxg1 {[%clk 0:00:12.9]} 46... Nxg1
{[%clk 0:00:07]} 47. Nxf1 {[%clk 0:00:13.5]} 47... Nf3 {[%clk 0:00:05.6]} 48.
Rxf3 {[%clk 0:00:14.7]} 48... Kd7 {[%clk 0:00:05.4]} 49. Nd2 {[%clk 0:00:15.9]}
49... Kc7 {[%clk 0:00:06.7]} 50. Nb3 {[%clk 0:00:17.4]} 50... Kb8 {[%clk
0:00:08.1]} 51. Rf7 {[%clk 0:00:18.4]} 51... b5 {[%clk 0:00:09.3]} 52. axb6
{[%clk 0:00:18.8]} 52... a5 {[%clk 0:00:10.3]} 53. bxa5 {[%clk 0:00:19.8]} 53...
c5 {[%clk 0:00:11.6]} 54. Nxc5 {[%clk 0:00:20.7]} 54... Kc8 {[%clk 0:00:11.8]}
55. a6 {[%clk 0:00:21.9]} 55... Kd8 {[%clk 0:00:12.9]} 56. a7 {[%clk 0:00:22.5]}
56... Ke8 {[%clk 0:00:14.4]} 57. Rc7 {[%clk 0:00:24]} 57... Kf8 {[%clk
0:00:15.9]} 58. a8=Q# {[%clk 0:00:25.9]} 1-0

[Event "*** Titled Tuesday Blitz"]
[Site "Chess.com"]
[Date "2019.03.05"]
[Round "9"]
[White "KhalilMousavi77"]
[Black "Dyadya81"]
[Result "1-0"]
[WhiteElo "2701"]
[BlackElo "2761"]
[TimeControl "180+2"]
[EndTime "15:14:43 PST"]
[Termination "KhalilMousavi77 won on time"]

1. c4 {[%clk 0:03:01.7]} 1... e5 {[%clk 0:03:00.6]} 2. Nc3 {[%clk 0:03:00.3]}
2... Bb4 {[%clk 0:03:02]} 3. g3 {[%clk 0:02:57.9]} 3... Bxc3 {[%clk 0:02:59.7]}
4. bxc3 {[%clk 0:02:56]} 4... Ne7 {[%clk 0:02:55.1]} 5. Bg2 {[%clk 0:02:57.1]}
5... O-O {[%clk 0:02:56.1]} 6. e4 {[%clk 0:02:57.6]} 6... b6 {[%clk 0:02:54.8]}
7. Ne2 {[%clk 0:02:57.6]} 7... Bb7 {[%clk 0:02:55.9]} 8. O-O {[%clk 0:02:58.1]}
8... f5 {[%clk 0:02:56.3]} 9. d3 {[%clk 0:02:54.1]} 9... d6 {[%clk 0:02:56.6]}
10. f3 {[%clk 0:02:36.6]} 10... Nd7 {[%clk 0:02:56]} 11. Be3 {[%clk 0:02:33.1]}
11... a5 {[%clk 0:02:54]} 12. Qd2 {[%clk 0:02:31.4]} 12... Nf6 {[%clk
0:02:51.4]} 13. Bh3 {[%clk 0:02:28.2]} 13... Bc8 {[%clk 0:02:43]} 14. Bg2 {[%clk
0:02:22.8]} 14... Bb7 {[%clk 0:02:39.3]} 15. Bh3 {[%clk 0:02:11.7]} 15... Bc8
{[%clk 0:02:31.9]} 16. Bg2 {[%clk 0:02:09.6]} 16... Be6 {[%clk 0:02:31.9]} 17.
h3 {[%clk 0:02:07]} 17... Qd7 {[%clk 0:02:24.8]} 18. Kh2 {[%clk 0:02:07.8]}
18... Rf7 {[%clk 0:02:16.8]} 19. Rf2 {[%clk 0:02:08.1]} 19... Raf8 {[%clk
0:02:16.5]} 20. Raf1 {[%clk 0:02:09.3]} 20... h6 {[%clk 0:02:15.4]} 21. Qc1
{[%clk 0:01:43.2]} 21... Kh7 {[%clk 0:02:04]} 22. Qd2 {[%clk 0:01:20.1]} 22...
g5 {[%clk 0:02:04.7]} 23. f4 {[%clk 0:01:20]} 23... exf4 {[%clk 0:01:53.5]} 24.
gxf4 {[%clk 0:01:21.9]} 24... g4 {[%clk 0:01:53.9]} 25. Ng3 {[%clk 0:01:20.5]}
25... h5 {[%clk 0:01:51.7]} 26. e5 {[%clk 0:01:16.9]} 26... h4 {[%clk
0:01:46.1]} 27. exf6 {[%clk 0:01:17.4]} 27... hxg3+ {[%clk 0:01:39.8]} 28. Kxg3
{[%clk 0:01:19.3]} 28... Rxf6 {[%clk 0:01:41.4]} 29. hxg4 {[%clk 0:01:06.8]}
29... fxg4 {[%clk 0:01:42.6]} 30. Rh1+ {[%clk 0:01:07.7]} 30... Kg8 {[%clk
0:01:41.7]} 31. Be4 {[%clk 0:01:07.5]} 31... d5 {[%clk 0:01:25.3]} 32. Bh7+
{[%clk 0:01:05.5]} 32... Kf7 {[%clk 0:01:25.6]} 33. Bd4 {[%clk 0:01:04.4]} 33...
Rf5 {[%clk 0:01:13]} 34. Bxf5 {[%clk 0:00:58.6]} 34... Nxf5+ {[%clk 0:01:14.9]}
35. Kg2 {[%clk 0:01:00.3]} 35... Ke8 {[%clk 0:01:12.5]} 36. Re2 {[%clk
0:00:59.5]} 36... Kd8 {[%clk 0:00:51.3]} 37. Qe1 {[%clk 0:00:59.2]} 37... Bf7
{[%clk 0:00:41.2]} 38. c5 {[%clk 0:01:00.1]} 38... Nxd4 {[%clk 0:00:19.6]} 39.
cxd4 {[%clk 0:01:02]} 39... bxc5 {[%clk 0:00:21.4]} 40. Qxa5 {[%clk 0:00:57.7]}
40... c4 {[%clk 0:00:19]} 41. Rhe1 {[%clk 0:00:46.1]} 41... cxd3 {[%clk
0:00:17.2]} 42. Re7 {[%clk 0:00:44.4]} 42... Qxe7 {[%clk 0:00:16.8]} 43. Rxe7
{[%clk 0:00:43.8]} 43... Kxe7 {[%clk 0:00:18.7]} 44. Qxc7+ {[%clk 0:00:42.7]}
44... Kf6 {[%clk 0:00:19.8]} 45. Qe5+ {[%clk 0:00:39.3]} 45... Kg6 {[%clk
0:00:21]} 46. Qg5+ {[%clk 0:00:40]} 46... Kh7 {[%clk 0:00:22.3]} 47. Qf5+ {[%clk
0:00:37.9]} 47... Kg7 {[%clk 0:00:11.1]} 48. Qxd3 {[%clk 0:00:31.2]} 48... Bg6
{[%clk 0:00:12.5]} 49. Qe3 {[%clk 0:00:32.6]} 49... Be4+ {[%clk 0:00:12]} 50.
Kg3 {[%clk 0:00:33.9]} 50... Bf3 {[%clk 0:00:12.1]} 51. Qe5+ {[%clk 0:00:34.5]}
51... Kg8 {[%clk 0:00:12.6]} 52. f5 {[%clk 0:00:35]} 52... Be4 {[%clk
0:00:12.5]} 53. Kxg4 {[%clk 0:00:34.1]} 53... Ra8 {[%clk 0:00:08.7]} 54. f6
{[%clk 0:00:34.1]} 1-0

[Event "*** Titled Tuesday Blitz"]
[Site "Chess.com"]
[Date "2019.03.05"]
[Round "9"]
[White "TheBigBadChessDad"]
[Black "King_of_the_wing"]
[Result "1/2-1/2"]
[WhiteElo "2355"]
[BlackElo "2142"]
[TimeControl "180+2"]
[EndTime "15:14:44 PST"]
[Termination "Game drawn by stalemate"]

1. d4 {[%clk 0:03:01.9]} 1... e6 {[%clk 0:02:58.9]} 2. Nf3 {[%clk 0:03:00.6]}
2... f5 {[%clk 0:02:59.8]} 3. c4 {[%clk 0:02:52.6]} 3... Nf6 {[%clk 0:02:57.6]}
4. d5 {[%clk 0:02:52.9]} 4... Bd6 {[%clk 0:02:52.5]} 5. dxe6 {[%clk 0:02:50.2]}
5... dxe6 {[%clk 0:02:53.6]} 6. Nc3 {[%clk 0:02:50.2]} 6... e5 {[%clk
0:02:39.3]} 7. c5 {[%clk 0:02:50]} 7... Bxc5 {[%clk 0:02:36.3]} 8. Qxd8+ {[%clk
0:02:50.8]} 8... Kxd8 {[%clk 0:02:35.2]} 9. Nxe5 {[%clk 0:02:51.9]} 9... Re8
{[%clk 0:02:30.7]} 10. Nd3 {[%clk 0:02:45.5]} 10... Bb6 {[%clk 0:02:27.3]} 11.
Bg5 {[%clk 0:02:46]} 11... Be6 {[%clk 0:02:24.2]} 12. O-O-O {[%clk 0:02:45.7]}
12... Nd7 {[%clk 0:02:22.5]} 13. e3 {[%clk 0:02:39.3]} 13... Kc8 {[%clk
0:02:18]} 14. Nf4 {[%clk 0:02:37.3]} 14... Bf7 {[%clk 0:02:11.4]} 15. Bd3 {[%clk
0:02:28.2]} 15... Ne4 {[%clk 0:02:01.5]} 16. Bxe4 {[%clk 0:01:59]} 16... fxe4
{[%clk 0:02:01.8]} 17. Nfd5 {[%clk 0:01:57.6]} 17... Nc5 {[%clk 0:01:35.9]} 18.
Kb1 {[%clk 0:01:29.1]} 18... Nd3 {[%clk 0:01:17.2]} 19. Rd2 {[%clk 0:01:23]}
19... Ba5 {[%clk 0:01:08.6]} 20. Nf4 {[%clk 0:01:16.9]} 20... Bxc3 {[%clk
0:00:58.9]} 21. bxc3 {[%clk 0:01:17.6]} 21... h6 {[%clk 0:01:00.4]} 22. Bh4
{[%clk 0:01:11]} 22... Nxf4 {[%clk 0:00:34.7]} 23. exf4 {[%clk 0:01:11.8]} 23...
c6 {[%clk 0:00:21.9]} 24. Rhd1 {[%clk 0:01:11.5]} 24... Rb8 {[%clk 0:00:09]} 25.
f5 {[%clk 0:01:11.5]} 25... Bd5 {[%clk 0:00:04.7]} 26. c4 {[%clk 0:01:12.1]}
26... Bxc4 {[%clk 0:00:02.5]} 27. Rd8+ {[%clk 0:01:12]} 27... Rxd8 {[%clk
0:00:04]} 28. Rxd8+ {[%clk 0:01:12.4]} 28... Kc7 {[%clk 0:00:05.5]} 29. Rd4
{[%clk 0:01:10.5]} 29... Bd3+ {[%clk 0:00:06]} 30. Kb2 {[%clk 0:01:12.1]} 30...
Rf8 {[%clk 0:00:04.4]} 31. g4 {[%clk 0:01:12.3]} 31... c5 {[%clk 0:00:04.4]} 32.
Bg3+ {[%clk 0:01:11.4]} 32... Kc6 {[%clk 0:00:06]} 33. Rd6+ {[%clk 0:01:13]}
33... Kb5 {[%clk 0:00:07.3]} 34. Rd7 {[%clk 0:01:14.1]} 34... Ka6 {[%clk
0:00:06.4]} 35. Rxg7 {[%clk 0:01:14.5]} 35... Rc8 {[%clk 0:00:07.6]} 36. Kc3
{[%clk 0:01:14.7]} 36... Rc6 {[%clk 0:00:06.2]} 37. Rg6 {[%clk 0:01:15.3]} 37...
Rxg6 {[%clk 0:00:06]} 38. fxg6 {[%clk 0:01:16.6]} 38... e3 {[%clk 0:00:06]} 39.
g7 {[%clk 0:01:15.1]} 39... e2 {[%clk 0:00:04]} 40. f4 {[%clk 0:01:15.2]} 40...
Bh7 {[%clk 0:00:02.4]} 41. f5 {[%clk 0:01:14.6]} 41... Kb6 {[%clk 0:00:02.9]}
42. h4 {[%clk 0:01:12.6]} 42... Kc6 {[%clk 0:00:03.7]} 43. g5 {[%clk 0:01:13.9]}
43... hxg5 {[%clk 0:00:04.9]} 44. hxg5 {[%clk 0:01:15]} 44... Kd5 {[%clk
0:00:05.6]} 45. g6 {[%clk 0:01:14.9]} 45... Bg8 {[%clk 0:00:06.9]} 46. f6 {[%clk
0:01:16.3]} 46... Ke6 {[%clk 0:00:08.4]} 47. f7 {[%clk 0:01:17.6]} 47... Bxf7
{[%clk 0:00:07.7]} 48. gxf7 {[%clk 0:01:18.8]} 48... Kxf7 {[%clk 0:00:09.6]} 49.
Kc4 {[%clk 0:01:16.1]} 49... Kxg7 {[%clk 0:00:09.9]} 50. Kxc5 {[%clk 0:01:17.3]}
50... Kf7 {[%clk 0:00:11]} 51. Kd6 {[%clk 0:01:18.5]} 51... Ke8 {[%clk
0:00:12.2]} 52. Kc7 {[%clk 0:01:19.7]} 52... b5 {[%clk 0:00:12.9]} 53. Be1
{[%clk 0:01:20.1]} 53... Ke7 {[%clk 0:00:12.5]} 54. Kb7 {[%clk 0:01:20.9]} 54...
a5 {[%clk 0:00:13.1]} 55. Ka6 {[%clk 0:01:22.2]} 55... Kd6 {[%clk 0:00:14.7]}
56. Kxb5 {[%clk 0:01:23.3]} 56... Kc7 {[%clk 0:00:15.8]} 57. a4 {[%clk
0:01:24.1]} 57... Kb8 {[%clk 0:00:16.7]} 58. Kxa5 {[%clk 0:01:25.6]} 58... Ka8
{[%clk 0:00:18]} 59. Kb6 {[%clk 0:01:27.1]} 59... Kb8 {[%clk 0:00:19.3]} 60. a5
{[%clk 0:01:28]} 60... Ka8 {[%clk 0:00:20.8]} 61. Kc5 {[%clk 0:01:29.7]} 61...
Kb8 {[%clk 0:00:22.5]} 62. Kd4 {[%clk 0:01:31.6]} 62... Ka8 {[%clk 0:00:24.3]}
63. Ke3 {[%clk 0:01:33.5]} 63... Kb8 {[%clk 0:00:26.2]} 64. Kxe2 {[%clk
0:01:35.1]} 64... Ka8 {[%clk 0:00:28.1]} 65. Kd3 {[%clk 0:01:37]} 65... Kb8
{[%clk 0:00:30]} 66. Kc4 {[%clk 0:01:38.8]} 66... Ka8 {[%clk 0:00:31.8]} 67. Kb5
{[%clk 0:01:40.7]} 67... Kb8 {[%clk 0:00:33.7]} 68. Ka6 {[%clk 0:01:41.2]} 68...
Ka8 {[%clk 0:00:35.6]} 69. Bb4 {[%clk 0:01:42.6]} 69... Kb8 {[%clk 0:00:37.5]}
70. Kb5 {[%clk 0:01:44.1]} 70... Ka8 {[%clk 0:00:38.8]} 71. Bd6 {[%clk
0:01:36.2]} 71... Kb7 {[%clk 0:00:39.5]} 72. Be5 {[%clk 0:01:34.1]} 72... Ka8
{[%clk 0:00:40.5]} 73. Kc6 {[%clk 0:01:35.2]} 73... Ka7 {[%clk 0:00:41.7]} 74.
Bc7 {[%clk 0:01:32.6]} 74... Ka8 {[%clk 0:00:43.6]} 75. Bd8 {[%clk 0:01:32.7]}
75... Ka7 {[%clk 0:00:44.9]} 76. Kc7 {[%clk 0:01:34.2]} 76... Ka8 {[%clk
0:00:46.3]} 77. Kc8 {[%clk 0:01:35.7]} 77... Ka7 {[%clk 0:00:48]} 78. Bc7 {[%clk
0:01:36.4]} 78... Ka8 {[%clk 0:00:49.9]} 79. Kd7 {[%clk 0:01:12.3]} 79... Ka7
{[%clk 0:00:51.8]} 80. Kc6 {[%clk 0:01:10.8]} 80... Ka8 {[%clk 0:00:53.7]} 81.
Kb6 {[%clk 0:01:12]} 1/2-1/2

[Event "*** Titled Tuesday Blitz"]
[Site "Chess.com"]
[Date "2019.03.05"]
[Round "9"]
[White "StoreySniper"]
[Black "payto1"]
[Result "1-0"]
[WhiteElo "2395"]
[BlackElo "2192"]
[TimeControl "180+2"]
[EndTime "15:14:55 PST"]
[Termination "StoreySniper won by checkmate"]

1. d4 {[%clk 0:03:01.9]} 1... Nf6 {[%clk 0:02:52.1]} 2. Bg5 {[%clk 0:03:01]}
2... Ne4 {[%clk 0:02:50.3]} 3. Bf4 {[%clk 0:03:00.6]} 3... d5 {[%clk 0:02:50.8]}
4. f3 {[%clk 0:03:01.5]} 4... Nf6 {[%clk 0:02:47.3]} 5. Nc3 {[%clk 0:02:59.8]}
5... Bf5 {[%clk 0:02:45.4]} 6. g4 {[%clk 0:02:56.2]} 6... Bg6 {[%clk 0:02:39.9]}
7. h4 {[%clk 0:02:56.5]} 7... h5 {[%clk 0:02:38.8]} 8. g5 {[%clk 0:02:57.3]}
8... Ng8 {[%clk 0:02:39.4]} 9. Nb5 {[%clk 0:02:50.9]} 9... Na6 {[%clk 0:02:38]}
10. e3 {[%clk 0:02:47.1]} 10... c6 {[%clk 0:02:32]} 11. Nc3 {[%clk 0:02:45.2]}
11... Nc7 {[%clk 0:02:32]} 12. Bd3 {[%clk 0:02:36.7]} 12... Bxd3 {[%clk
0:02:27.5]} 13. cxd3 {[%clk 0:02:36.4]} 13... e6 {[%clk 0:02:27]} 14. Nge2
{[%clk 0:02:34.1]} 14... Bd6 {[%clk 0:02:27.5]} 15. Bxd6 {[%clk 0:02:26.6]}
15... Qxd6 {[%clk 0:02:27.4]} 16. f4 {[%clk 0:02:27.1]} 16... Ne7 {[%clk
0:02:26.7]} 17. Ng3 {[%clk 0:02:26.5]} 17... g6 {[%clk 0:02:23.6]} 18. Qf3
{[%clk 0:02:18.7]} 18... Nf5 {[%clk 0:02:21.3]} 19. Nxf5 {[%clk 0:02:18.4]}
19... exf5 {[%clk 0:02:23.2]} 20. O-O-O {[%clk 0:02:16.4]} 20... O-O {[%clk
0:02:22.2]} 21. e4 {[%clk 0:02:07.4]} 21... Ne6 {[%clk 0:02:22.1]} 22. Ne2
{[%clk 0:01:59.4]} 22... dxe4 {[%clk 0:02:08.6]} 23. dxe4 {[%clk 0:01:59.8]}
23... fxe4 {[%clk 0:02:09.7]} 24. Qxe4 {[%clk 0:02:00.6]} 24... Rfe8 {[%clk
0:02:09.5]} 25. Qf3 {[%clk 0:01:50.2]} 25... Ng7 {[%clk 0:02:08]} 26. Ng3 {[%clk
0:01:39.7]} 26... Rad8 {[%clk 0:01:52.1]} 27. Ne4 {[%clk 0:01:36.5]} 27... Rxe4
{[%clk 0:01:45.2]} 28. Qxe4 {[%clk 0:01:37]} 28... Re8 {[%clk 0:01:45]} 29. Qf3
{[%clk 0:01:26.2]} 29... Nf5 {[%clk 0:01:28.7]} 30. d5 {[%clk 0:01:12.2]} 30...
Re3 {[%clk 0:01:21.2]} 31. Qf2 {[%clk 0:01:05.2]} 31... cxd5 {[%clk 0:01:19.9]}
32. Kb1 {[%clk 0:01:02.4]} 32... d4 {[%clk 0:01:19.4]} 33. Rhe1 {[%clk
0:00:54.9]} 33... Qe6 {[%clk 0:00:48]} 34. Rxe3 {[%clk 0:00:47.6]} 34... Qxe3
{[%clk 0:00:47.9]} 35. Qxe3 {[%clk 0:00:44.5]} 35... dxe3 {[%clk 0:00:49.8]} 36.
Rd8+ {[%clk 0:00:41.6]} 36... Kg7 {[%clk 0:00:46.7]} 37. Re8 {[%clk 0:00:42.7]}
37... Nxh4 {[%clk 0:00:36.2]} 38. Rxe3 {[%clk 0:00:41.9]} 38... Ng2 {[%clk
0:00:36.8]} 39. Rf3 {[%clk 0:00:35.8]} 39... h4 {[%clk 0:00:37.1]} 40. Kc1
{[%clk 0:00:24.3]} 40... f5 {[%clk 0:00:29]} 41. Kd2 {[%clk 0:00:18.3]} 41... h3
{[%clk 0:00:23.9]} 42. Rxh3 {[%clk 0:00:19.2]} 42... Nxf4 {[%clk 0:00:24.3]} 43.
Rc3 {[%clk 0:00:19.1]} 43... Ne6 {[%clk 0:00:24.7]} 44. Ke3 {[%clk 0:00:17.6]}
44... b6 {[%clk 0:00:21.6]} 45. Ra3 {[%clk 0:00:15.7]} 45... a5 {[%clk
0:00:21.7]} 46. Rb3 {[%clk 0:00:16.9]} 46... f4+ {[%clk 0:00:21.5]} 47. Kf2
{[%clk 0:00:14.6]} 47... Nxg5 {[%clk 0:00:21.7]} 48. Rxb6 {[%clk 0:00:15.7]}
48... Nf7 {[%clk 0:00:19.8]} 49. b4 {[%clk 0:00:16.4]} 49... axb4 {[%clk
0:00:20.2]} 50. Rxb4 {[%clk 0:00:18.3]} 50... g5 {[%clk 0:00:21.9]} 51. a4
{[%clk 0:00:19]} 51... Kf6 {[%clk 0:00:22.9]} 52. a5 {[%clk 0:00:20.4]} 52...
Nd8 {[%clk 0:00:23.1]} 53. a6 {[%clk 0:00:21]} 53... Nc6 {[%clk 0:00:24.1]} 54.
Rb6 {[%clk 0:00:21.1]} 54... Kf5 {[%clk 0:00:25.7]} 55. Rxc6 {[%clk 0:00:22.2]}
55... g4 {[%clk 0:00:27.4]} 56. a7 {[%clk 0:00:23.5]} 56... g3+ {[%clk
0:00:29.3]} 57. Kf3 {[%clk 0:00:24]} 57... g2 {[%clk 0:00:30.1]} 58. Kxg2 {[%clk
0:00:24.3]} 58... Kg4 {[%clk 0:00:30.2]} 59. Rg6+ {[%clk 0:00:23.6]} 59... Kf5
{[%clk 0:00:31]} 60. Rg8 {[%clk 0:00:24.5]} 60... f3+ {[%clk 0:00:31.9]} 61.
Kxf3 {[%clk 0:00:23.8]} 61... Ke5 {[%clk 0:00:32.3]} 62. a8=Q {[%clk 0:00:23.5]}
62... Kd4 {[%clk 0:00:34.2]} 63. Rd8+ {[%clk 0:00:23.3]} 63... Kc5 {[%clk
0:00:36.1]} 64. Qa5+ {[%clk 0:00:23.5]} 64... Kc4 {[%clk 0:00:36.4]} 65. Qc7+
{[%clk 0:00:21.9]} 65... Kb3 {[%clk 0:00:38.3]} 66. Rb8+ {[%clk 0:00:22.7]}
66... Ka2 {[%clk 0:00:40.2]} 67. Qa7# {[%clk 0:00:23.5]} 1-0